bitfinex-derivatives/quotes_ETHF0:USTF0_20240826
["timestamp","ask_amount","ask_price","bid_price","bid_amount"]
[1724673758756,0.37025515,2740.6,2740.5,1.31]
[1724673759047,0.37025515,2740.6,2740.5,5.41497659]
[1724673759454,0.37331725,2740.6,2740.5,5.41497659]
[1724673761651,0.37331725,2740.6,2740.5,4.9588]
[1724673761848,0.37331725,2740.6,2740.5,5.41493613]
[1724673762755,0.00853725,2740.6,2740.5,5.41493613]
[1724673762950,0.37331725,2740.6,2740.5,5.41493613]
[1724673763759,0.00853725,2740.6,2740.5,5.77972613]
[1724673764255,0.00853725,2740.6,2740.5,5.77971733]
[1724673764850,0.37331725,2740.6,2740.5,5.77971733]
[1724673765346,0.00853725,2740.6,2740.5,5.77971733]
[1724673766141,0.37331725,2740.6,2740.5,5.77971733]
[1724673766364,0.37331725,2740.6,2740.5,2.13091733]
[1724673766550,0.37331725,2740.6,2740.5,1.76612733]
[1724673767161,0.00853725,2740.6,2740.5,2.13091733]
[1724673772958,0.36273725,2740.6,2740.5,2.13091733]
[1724673773957,0.74773725,2740.6,2740.5,2.13091733]
[1724673774851,0.00853725,2740.6,2740.5,2.13091733]
[1724673780760,0.00853725,2740.6,2740.5,1.67479]
[1724673780963,0.00853725,2740.6,2740.5,2.130915]
[1724673781461,8.14186725,2740.6,2740.5,0.456125]
[1724673782565,14.08708725,2740.6,2740.0,5.505]
[1724673782759,1.67483,2740.3,2740.1,0.45622993]
[1724673783086,1.67483,2740.3,2740.0,5.86985]
[1724673783087,0.3741,2740.2,2740.0,5.86985]
[1724673783286,0.72025,2740.1,2739.9,1.31]
[1724673783783,0.36486,2740.0,2739.9,1.31]
[1724673783977,0.36486,2740.0,2739.9,1.76625625]
[1724673784281,0.72025,2740.1,2739.9,1.76625625]
[1724673784486,0.72025,2740.1,2740.0,0.45625625]
[1724673784877,4.36985,2740.1,2740.0,0.45625625]
[1724673785273,9.79977,2740.1,2740.0,0.45625625]
[1724673786587,9.79977,2740.1,2739.7,2.26527157]
[1724673786588,0.36488,2739.9,2739.7,2.63016157]
[1724673786777,0.36487,2739.9,2739.7,2.63016157]
[1724673786972,0.36487,2739.9,2739.6,0.00987094]
[1724673786973,4.8781,2739.8,2739.6,0.00987094]
[1724673787176,0.7295,2739.7,2739.6,0.00987094]
[1724673787483,0.7295,2739.7,2739.6,1.77620022]
[1724673787674,4.3799,2739.7,2739.6,1.77620022]
[1724673789377,4.3799,2739.7,2739.6,0.46620022]
[1724673789577,4.3799,2739.7,2739.6,0.00987094]
[1724673789578,11.2044,2739.7,2739.6,0.00987094]
[1724673789786,0.36495,2739.3,2739.2,3.7432916]
[1724673789989,1.67495,2739.3,2739.2,3.7432916]
[1724673790282,1.67495,2739.3,2738.7,0.7338]
[1724673790283,8.1682,2739.3,2738.7,2.99903292]
[1724673790483,1.31,2739.0,2738.8,0.45643283]
[1724673790786,0.3805,2738.9,2738.8,0.00343414]
[1724673790975,0.3805,2738.9,2738.8,1.76988806]
[1724673791383,0.3805,2738.9,2738.8,1.31343414]
[1724673792778,2.96802,2738.9,2738.8,0.00343414]
[1724673792986,8.9145,2738.9,2738.8,0.00343414]
[1724673793175,13.9145,2738.9,2738.8,0.00343414]
[1724673793379,7.6045,2738.9,2738.8,0.00343414]
[1724673794081,8.9145,2738.9,2738.8,0.00343414]
[1724673795382,9.82702,2738.9,2738.8,0.00343414]
[1724673796686,1.67503,2738.7,2738.6,0.00547515]
[1724673797079,4.75563,2738.7,2738.6,0.00547515]
[1724673797690,4.75563,2738.7,2738.6,0.00892151]
[1724673799084,4.75563,2738.7,2738.6,1.31892151]
[1724673800093,4.75563,2738.7,2738.6,0.00892151]
[1724673801393,6.06563,2738.7,2738.6,0.00892151]
[1724673805397,6.97822,2738.7,2738.6,0.00892151]
[1724673808007,10.18602,2738.7,2738.6,0.00892151]
[1724673809099,10.44221773,2738.7,2738.6,0.00892151]
[1724673809598,10.44221773,2738.7,2738.6,0.01282151]
[1724673811694,11.35480773,2738.7,2738.6,0.01282151]
[1724673814401,14.16459773,2738.7,2738.2,1.5819]
[1724673814606,2.5878,2738.3,2738.2,1.2]
[1724673815500,2.59226032,2738.3,2738.2,1.20365984]
[1724673816098,2.94466032,2738.3,2738.2,1.20365984]
[1724673816304,2.03194032,2738.3,2738.2,1.20365984]
[1724673817702,0.72194032,2738.3,2738.2,1.20365984]
[1724673818611,0.00446032,2738.3,2738.2,2.87875984]
[1724673819897,0.00446032,2738.3,2738.2,3.79150984]
[1724673820098,0.00446032,2738.3,2738.2,7.44350984]
[1724673820297,0.36501,2738.9,2738.4,0.91267]
[1724673820497,0.36499,2739.0,2738.8,1.67501]
[1724673820702,0.00547515,2739.1,2738.9,2.0458]
[1724673820901,0.37045515,2739.1,2739.0,0.7117]
[1724673821395,0.37407711,2739.1,2739.0,0.7117]
[1724673827111,0.37407711,2739.1,2739.0,0.3573]
[1724673830812,0.36499,2739.0,2738.9,0.3708]
[1724673831820,0.36499,2739.0,2738.9,0.73581]
[1724673832217,0.36499,2739.0,2738.9,1.19222336]
[1724673835723,0.36499,2739.0,2738.9,0.82721336]
[1724673835915,1.27748,2739.0,2738.9,0.82721336]
[1724673836717,2.18997,2739.0,2738.9,0.45641336]
[1724673836913,0.91259,2738.7,2738.4,0.95523292]
[1724673837112,1.27773,2738.5,2738.4,0.3648]
[1724673837313,0.36507,2738.5,2738.4,0.8212983]
[1724673839412,0.72547,2738.5,2738.4,0.8212983]
[1724673839820,1.63813,2738.5,2738.4,0.4564983]
[1724673840019,0.36507,2738.4,2738.3,0.3628]
[1724673842523,0.36509,2738.3,2738.2,1.20365984]
[1724673842722,0.36509,2738.3,2738.2,1.66021386]
[1724673844121,1.67509,2738.3,2738.2,1.20365984]
[1724673846118,2.58782,2738.3,2738.2,1.20365984]
[1724673847925,12.15255,2738.3,2738.2,1.20365984]
[1724673848223,7.15255,2738.3,2738.2,1.20365984]
[1724673848625,12.15255,2738.3,2738.2,1.20365984]
[1724673849121,7.15255,2738.3,2738.2,1.20365984]
[1724673850419,5.32709,2738.3,2738.2,1.20365984]
[1724673850717,6.23982,2738.3,2738.2,1.20365984]
[1724673851923,2.58782,2738.3,2738.2,1.20365984]
[1724673852831,3.50055,2738.3,2738.2,1.20365984]
[1724673853226,7.15255,2738.3,2738.2,1.20365984]
[1724673854733,7.15255,2738.3,2738.2,1.20755984]
[1724673856529,12.15255,2738.3,2738.2,1.1706694]
[1724673856719,10.84255,2738.3,2738.2,1.1706694]
[1724673856924,12.15255,2738.3,2738.2,1.1706694]
[1724673857522,2.58782,2738.3,2738.2,1.1706694]
[1724673857827,0.36509,2738.3,2738.2,1.1706694]
[1724673858129,1.67509,2738.3,2738.2,1.1706694]
[1724673860125,4.88289,2738.3,2738.2,1.1706694]
[1724673860823,5.79562,2738.3,2738.2,1.1706694]
[1724673862929,9.44762,2738.3,2738.2,1.1706694]
[1724673863433,10.36035,2738.3,2738.2,1.1706694]
[1724673867032,10.61215476,2738.3,2738.2,1.1706694]
[1724673868420,15.61215476,2738.3,2738.2,1.09878658]
[1724673868620,0.36517,2737.7,2737.3,2.052]
[1724673868934,0.36518,2737.6,2737.5,0.36519]
[1724673869431,0.36518,2737.6,2737.5,3.6528]
[1724673869631,0.36518,2737.6,2737.5,4.0214774]
[1724673870431,0.36518,2737.6,2737.5,0.0034774]
[1724673870632,1.67518,2737.6,2737.5,0.0034774]
[1724673870931,1.67518,2737.6,2737.5,0.3686774]
[1724673871631,1.67518,2737.6,2737.5,0.0034774]
[1724673874233,1.67518,2737.6,2737.5,0.3686774]
[1724673875829,1.67518,2737.6,2737.5,0.0034774]
[1724673876030,1.67518,2737.6,2737.5,0.3686774]
[1724673876231,1.67518,2737.6,2737.5,0.0034774]
[1724673876847,1.67518,2737.6,2737.5,0.3686774]
[1724673877435,0.36514,2738.0,2737.6,0.91296]
[1724673877636,1.67513,2738.0,2737.6,2.22296]
[1724673877928,1.67513,2738.0,2737.9,0.36513]
[1724673878129,0.36511,2738.2,2737.9,3.652]
[1724673878332,3.2078,2738.3,2737.7,0.3847]
[1724673878333,3.2078,2738.3,2738.2,0.3651]
[1724673878533,1.31,2738.7,2738.2,0.45651741]
[1724673878741,1.31,2738.7,2738.6,0.36505]
[1724673878934,1.31,2738.7,2738.5,0.36505]
[1724673878935,1.67504,2738.7,2738.5,0.36505]
[1724673879232,4.187,2738.8,2738.6,0.3817]
[1724673879233,4.55203,2738.8,2738.6,0.3817]
[1724673879425,4.187,2738.8,2738.7,0.36504]
[1724673879624,4.187,2738.8,2738.7,0.45644914]
[1724673879822,4.187,2738.8,2738.7,4.01624]
[1724673880034,4.187,2738.8,2738.7,4.10763761]
[1724673880334,4.187,2738.8,2738.7,0.45643761]
[1724673880634,4.187,2738.8,2738.7,4.10763761]
[1724673880930,5.497,2738.8,2738.7,4.10763761]
[1724673882236,3.5728,2739.0,2738.7,3.6512]
[1724673882535,0.365,2739.0,2738.7,0.45643226]
[1724673882735,0.365,2739.0,2738.8,0.81293226]
[1724673883033,0.36501,2738.9,2738.8,0.3565]
[1724673883240,0.36501,2738.9,2738.8,0.81296144]
[1724673883429,0.36501,2738.9,2738.8,0.3565]
[1724673884734,0.365,2739.0,2738.8,0.3565]
[1724673885538,3.21689711,2739.1,2738.8,0.3565]
[1724673885539,3.58188711,2739.1,2738.8,0.3565]
[1724673886431,0.365,2739.0,2738.8,0.3565]
[1724673886630,0.36501,2738.9,2738.8,0.3565]
[1724673889340,0.36502,2738.8,2738.6,0.3817]
[1724673889530,0.36502,2738.8,2738.7,0.45644248]
[1724673889840,0.36502,2738.8,2738.6,0.74675]
[1724673892631,0.36504,2738.7,2738.6,0.74675]
[1724673892943,0.36503,2738.8,2738.6,0.74675]
[1724673893436,0.36504,2738.7,2738.6,0.74675]
[1724673898535,0.36504,2738.7,2738.6,0.3817]
[1724673900145,0.36504,2738.7,2738.6,0.74675]
[1724673900939,0.36504,2738.7,2738.6,0.3817]
[1724673902150,0.36504,2738.7,2738.6,0.74675]
[1724673902346,0.36504,2738.7,2738.6,0.3817]
[1724673902647,0.36504,2738.7,2738.6,0.74675]
[1724673903141,0.3651,2738.3,2738.2,0.3651]
[1724673903343,1.82506,2738.9,2738.2,0.3651]
[1724673903344,0.36507,2738.5,2738.4,0.36507]
[1724673903647,0.36504,2738.7,2738.6,0.36504]
[1724673904042,1.67503,2738.8,2738.7,0.36504]
[1724673904251,1.67503,2738.8,2738.7,1.09474]
[1724673907352,3.2078,2738.9,2738.8,0.36502]
[1724673907536,0.00909711,2739.1,2739.0,0.365]
[1724673907740,1.31,2739.6,2739.4,0.36494]
[1724673907935,1.31,2739.8,2739.5,0.3875]
[1724673908136,1.31,2739.9,2739.8,0.36489]
[1724673908434,0.36488,2739.9,2739.7,0.36489]
[1724673908644,1.67488,2739.9,2739.7,0.36489]
[1724673908839,1.67852391,2739.9,2739.7,0.36881644]
[1724673909049,1.31364391,2739.9,2739.8,0.36489]
[1724673909247,1.31364391,2739.9,2739.7,0.00392644]
[1724673909442,1.31364391,2739.9,2739.8,0.36489]
[1724673910151,0.00364391,2739.9,2739.8,0.36489]
[1724673910352,0.00364391,2739.9,2739.8,4.01449]
[1724673910643,0.36852391,2739.9,2739.8,3.6496]
[1724673911647,0.00364391,2739.9,2739.8,4.01449]
[1724673913940,0.00364391,2739.9,2739.8,9.01449]
[1724673914342,0.00364391,2739.9,2739.8,9.92672]
[1724673914540,4.29310712,2740.3,2739.9,3.6496]
[1724673914746,4.29310712,2740.3,2740.2,0.36484]
[1724673915142,4.29310712,2740.3,2740.2,4.01444]
[1724673915543,4.29754665,2740.3,2740.2,4.01444]
[1724673916347,4.66237665,2740.3,2740.1,0.36484]
[1724673917055,4.66237665,2740.3,2740.2,0.36483]
[1724673917056,4.29754665,2740.3,2740.2,0.36483]
[1724673919446,0.00443953,2740.3,2740.2,0.36483]
[1724673920045,0.00443953,2740.3,2740.2,4.01443]
[1724673920547,0.00010363,2740.3,2740.2,4.01443]
[1724673921052,0.00010363,2740.3,2740.2,7.22223]
[1724673921255,0.00010363,2740.3,2740.2,7.60163]
[1724673922352,0.00010363,2740.3,2740.2,12.60163]
[1724673922750,0.00010363,2740.3,2740.2,8.51372]
[1724673923657,0.00010363,2740.3,2740.2,13.51372]
[1724673924449,0.00010363,2740.3,2740.2,8.51372]
[1724673925148,0.00010363,2740.3,2740.2,7.60163]
[1724673929153,0.00010363,2740.3,2740.2,8.51372]
[1724673929651,0.00010363,2740.3,2740.2,7.60163]
[1724673930345,0.00010363,2740.3,2740.2,3.95203]
[1724673931556,0.00010363,2740.3,2740.2,7.60163]
[1724673932151,0.00010363,2740.3,2740.2,4.39383]
[1724673932352,0.00010363,2740.3,2740.2,7.60163]
[1724673933946,0.00010363,2740.3,2740.2,3.57263]
[1724673935557,0.00010363,2740.3,2740.2,8.13432]
[1724673935950,0.00010363,2740.3,2740.2,14.04641]
[1724673936158,0.00010363,2740.3,2740.2,17.19641]
[1724673936357,0.00547515,2740.5,2740.4,1.27684]
[1724673936754,0.00547515,2740.5,2740.4,9.92564]
[1724673937057,0.00547515,2740.5,2740.4,10.27684]
[1724673937361,0.00547515,2740.5,2740.4,5.27684]
[1724673937362,0.00877952,2740.5,2740.4,5.27684]
[1724673938266,0.00877952,2740.5,2740.4,8.48464]
[1724673940169,0.00877952,2740.5,2740.4,9.39667]
[1724673943464,0.00877952,2740.5,2740.4,4.48464]
[1724673943664,0.00877952,2740.5,2740.4,8.13344]
[1724673943970,0.00877952,2740.5,2740.4,9.44344]
[1724673944170,0.00877952,2740.5,2740.4,10.35547]
[1724673945361,0.00877952,2740.5,2740.4,11.30463871]
[1724673946268,0.00877952,2740.5,2740.4,4.52177871]
[1724673946569,0.00877952,2740.5,2740.4,10.39260871]
[1724673946771,0.00877952,2740.5,2740.4,6.74380871]
[1724673947561,0.00877952,2740.5,2740.4,7.61902855]
[1724673949360,0.00877952,2740.5,2740.4,8.07512163]
[1724673950268,0.00877952,2740.5,2740.4,8.0751268]
[1724673951371,0.00877952,2740.5,2740.4,7.61903372]
[1724673951569,0.00877952,2740.5,2740.4,8.07512937]
[1724673951772,0.00877952,2740.5,2740.4,9.9734668]
[1724673952174,0.3706,2740.9,2740.8,0.36475]
[1724673952567,4.0194,2740.9,2740.8,0.36475]
[1724673953270,0.37365779,2740.9,2740.8,0.36475]
[1724673953478,0.37365779,2740.9,2740.8,0.82083471]
[1724673954467,0.37365779,2740.9,2740.7,1.67476]
[1724673954468,0.73840779,2740.9,2740.7,1.67476]
[1724673954666,0.73840779,2740.9,2740.8,1.31]
[1724673954667,0.37365779,2740.9,2740.8,1.31]
[1724673954880,0.37365779,2740.9,2740.8,2.13083367]
[1724673955373,0.37365779,2740.9,2740.8,0.82083367]
[1724673955581,0.37365779,2740.9,2740.8,2.13083367]
[1724673957967,0.37365779,2740.9,2740.8,2.13082162]
[1724673958168,0.00305779,2740.9,2740.8,6.73462461]
[1724673958384,0.3587,2741.4,2741.3,0.36469]
[1724673958575,0.3587,2741.4,2741.3,0.82076162]
[1724673958771,0.3587,2741.4,2741.3,0.82067754]
[1724673958975,0.3587,2741.4,2741.3,2.33743627]
[1724673959281,0.36341787,2741.4,2741.3,1.38239457]
[1724673959580,0.36341787,2741.4,2741.3,2.33743627]
[1724673959879,0.36341787,2741.4,2741.3,1.97274627]
[1724673960077,4.01141787,2741.4,2741.3,1.97274627]
[1724673960378,0.36341787,2741.4,2741.3,0.45598754]
[1724673960782,0.36341787,2741.4,2741.3,0.45600396]
[1724673961280,0.36341787,2741.4,2741.3,2.13069396]
[1724673961679,0.00471787,2741.4,2741.3,2.13069396]
[1724673961886,0.00471787,2741.4,2741.3,2.48519396]
[1724673962282,0.00471787,2741.4,2741.3,2.85339396]
[1724673962677,0.00471787,2741.4,2741.3,2.48519396]
[1724673963085,4.01738787,2741.4,2741.3,0.45600396]
[1724673963279,5.32738787,2741.4,2741.3,0.45600396]
[1724673963580,5.71578787,2741.4,2741.3,0.45600396]
[1724673963775,11.62747787,2741.4,2741.3,0.45600396]
[1724673964179,6.62747787,2741.4,2741.3,0.45600396]
[1724673964390,11.62747787,2741.4,2741.3,0.45600396]
[1724673965980,10.31747787,2741.4,2741.3,0.45600396]
[1724673966390,0.3647,2741.2,2741.1,0.00547515]
[1724673966577,3.648,2741.2,2741.1,0.46151991]
[1724673966894,0.36469,2741.3,2741.1,0.82622991]
[1724673967075,0.36469,2741.3,2741.2,0.45604476]
[1724673967275,0.75779787,2741.4,2741.2,0.45604476]
[1724673967480,0.75779787,2741.4,2741.1,0.00547515]
[1724673967481,4.40579787,2741.4,2741.3,0.45604476]
[1724673967681,0.75779787,2741.4,2741.3,0.45604476]
[1724673967879,4.40579787,2741.4,2741.3,0.45604476]
[1724673969693,4.40579787,2741.4,2741.3,0.4560275]
[1724673969694,5.31748787,2741.4,2741.3,0.4560275]
[1724673969878,0.3647,2741.2,2741.1,0.00547515]
[1724673970077,2.18822,2741.2,2741.1,0.00547515]
[1724673970391,10.83622,2741.2,2741.1,0.00547515]
[1724673971488,9.92446,2741.2,2741.1,0.00547515]
[1724673973186,10.29336,2741.2,2741.1,0.00547515]
[1724673973687,13.50116,2741.2,2741.1,0.00547515]
[1724673973881,0.36478,2740.6,2740.5,0.95497688]
[1724673974092,12.2247,2741.2,2740.5,0.95497688]
[1724673974093,0.36477,2740.7,2740.5,0.95497688]
[1724673974292,0.36478,2740.6,2740.5,1.31976688]
[1724673974879,0.36478,2740.6,2740.5,0.95497688]
[1724673975084,4.01358,2740.6,2740.5,0.95497688]
[1724673975797,0.3648,2740.5,2740.4,1.31978688]
[1724673975981,3.6488,2740.6,2740.5,0.3648]
[1724673975982,4.01358,2740.6,2740.5,0.3648]
[1724673976181,3.6488,2740.6,2740.5,0.3648]
[1724673976387,4.01358,2740.6,2740.5,0.7164]
[1724673979694,4.01358,2740.6,2740.5,0.3516]
[1724673981195,0.36481,2740.4,2740.3,0.00547515]
[1724673981989,4.01361,2740.4,2740.3,0.00547515]
[1724673982591,4.92564,2740.4,2740.3,0.00547515]
[1724673986094,6.23564,2740.4,2740.3,0.00547515]
[1724673995994,0.36481,2740.4,2740.3,0.37029515]
[1724673996293,1.67481,2740.4,2740.3,0.37029515]
[1724673997005,3.2078,2740.8,2740.3,2.22752515]
[1724673997195,0.36477,2740.7,2740.6,0.36476]
[1724673997395,3.2078,2740.8,2740.7,0.36476]
[1724673997396,3.57256,2740.8,2740.7,0.36476]
[1724673998598,3.57256,2740.8,2740.6,0.3641]
[1724673998599,0.36476,2740.7,2740.6,0.3641]
[1724673998801,2.94367,2740.7,2740.6,0.3641]
[1724673999099,6.59247,2740.7,2740.6,0.3641]
[1724674002294,6.59247,2740.7,2740.4,0.73079]
[1724674002295,0.36479,2740.5,2740.4,0.366]
[1724674002500,1.67479,2740.5,2740.4,0.7409]
[1724674003105,2.58677,2740.5,2740.4,0.7409]
[1724674011112,2.58677,2740.5,2740.4,1.1006]
[1724674012208,2.58677,2740.5,2740.4,1.4654]
[1724674012506,1.27681,2740.4,2740.3,0.00547515]
[1724674013011,4.92561,2740.4,2740.3,0.00547515]
[1724674013409,4.0136,2740.4,2740.3,0.37029515]
[1724674013605,0.3648,2740.5,2740.4,0.3648]
[1724674013803,4.47673,2740.7,2740.5,0.36478]
[1724674013804,0.36478,2740.6,2740.5,0.36478]
[1724674014008,4.47673,2740.7,2740.6,0.36478]
[1724674014009,3.5648,2740.7,2740.6,0.36478]
[1724674014302,3.2078,2740.7,2740.6,0.36478]
[1724674014503,0.36473,2741.0,2740.6,1.31]
[1724674014714,0.36473,2741.0,2740.9,0.36474]
[1724674015016,0.36474,2740.9,2740.8,0.36474]
[1724674015910,3.57252,2741.1,2740.9,0.36474]
[1724674016105,3.57252,2741.1,2740.8,1.31]
[1724674016106,0.36472,2741.1,2741.0,0.3667]
[1724674016307,0.3647,2741.2,2741.0,0.3667]
[1724674016609,0.36471,2741.1,2741.0,1.6767]
[1724674017500,0.36471,2741.1,2741.0,0.3667]
[1724674018112,0.36468,2741.3,2741.1,0.3647]
[1724674018317,0.36468,2741.3,2741.0,0.3667]
[1724674018318,0.36938787,2741.4,2741.2,0.71829]
[1724674019008,0.36938787,2741.4,2741.2,0.3536]
[1724674019311,0.36468,2741.3,2741.2,0.3536]
[1724674020407,1.27639,2741.3,2741.2,0.3536]
[1724674020603,0.36471,2741.1,2741.0,0.3667]
[1724674020909,0.36471,2741.1,2741.0,0.7475]
[1724674022014,0.00471787,2741.4,2741.0,0.7475]
[1724674022216,0.36468,2741.3,2741.1,0.3647]
[1724674022515,0.36469,2741.3,2741.1,0.3647]
[1724674022720,0.36469,2741.3,2741.2,0.3647]
[1724674023110,0.36469,2741.3,2741.1,0.3647]
[1724674023605,0.36469,2741.3,2741.0,0.7475]
[1724674023606,0.36469,2741.3,2741.2,0.3647]
[1724674024016,0.00471787,2741.4,2741.0,0.7475]
[1724674024209,0.36471,2741.1,2741.0,1.11221]
[1724674024423,0.36471,2741.1,2741.0,0.7475]
[1724674025820,0.73841,2741.1,2741.0,0.7475]
[1724674027208,0.73841,2741.1,2741.0,1.11222]
[1724674027521,0.36471,2741.1,2741.0,1.11222]
[1724674028523,0.00471787,2741.4,2741.0,0.7475]
[1724674028716,0.36469,2741.3,2741.2,0.36469]
[1724674028915,0.36939787,2741.4,2741.3,0.36468]
[1724674031518,0.36469,2741.3,2741.2,0.36468]
[1724674035523,0.91174,2741.2,2741.0,0.7475]
[1724674035822,0.36471,2741.1,2741.0,1.11222]
[1724674038429,0.36471,2741.2,2741.1,0.36471]
[1724674039717,0.36471,2741.2,2741.0,1.11221]
[1724674040322,0.36469,2741.2,2741.0,1.11221]
[1724674040727,0.36471,2741.1,2741.0,1.11221]
[1724674041628,0.3647,2741.2,2741.1,0.36471]
[1724674041832,0.36471,2741.1,2741.0,1.11221]
[1724674042220,0.38021787,2741.4,2741.0,0.7475]
[1724674042221,0.00471787,2741.4,2741.0,0.7475]
[1724674042422,0.36468,2741.3,2741.2,0.36468]
[1724674042922,0.36939787,2741.4,2741.3,0.36468]
[1724674043532,0.00471787,2741.4,2741.2,0.36468]
[1724674043731,0.00471787,2741.4,2741.3,0.376]
[1724674044831,0.36939787,2741.4,2741.3,0.376]
[1724674045230,0.36939787,2741.4,2741.2,0.36468]
[1724674045231,0.36468,2741.3,2741.2,0.36468]
[1724674045935,0.36469,2741.2,2741.1,0.7407]
[1724674046134,0.36471,2741.1,2741.0,0.7475]
[1724674046342,0.73141,2741.1,2741.0,0.7475]
[1724674046633,0.73141,2741.1,2741.0,1.11222]
[1724674048828,0.73141,2741.1,2741.0,0.7475]
[1724674049035,0.73141,2741.1,2740.8,0.3699]
[1724674049239,0.36473,2741.0,2740.9,0.36473]
[1724674050443,0.36473,2740.9,2740.8,1.46964]
[1724674050833,0.73141,2741.1,2740.9,0.36473]
[1724674050834,0.36474,2741.0,2740.9,0.36473]
[1724674051035,0.36474,2740.9,2740.8,1.46964]
[1724674052232,0.36474,2740.9,2740.8,2.42461688]
[1724674052735,0.36475,2740.8,2740.7,4.16277688]
[1724674053040,0.36475,2740.8,2740.7,3.57257]
[1724674054236,0.36475,2740.8,2740.7,4.88257]
[1724674054429,0.36475,2740.9,2740.8,0.36474]
[1724674054635,0.36474,2741.0,2740.9,0.36473]
[1724674055035,0.3667,2741.1,2740.9,1.1155]
[1724674055335,0.36471,2741.2,2741.1,0.3647]
[1724674056835,0.36471,2741.1,2741.0,0.36472]
[1724674057037,0.72551,2741.1,2741.0,0.36472]
[1724674057546,0.36473,2741.0,2740.9,0.72773]
[1724674059346,0.36473,2741.0,2740.9,2.24450106]
[1724674060236,0.36473,2741.0,2740.9,4.06879192]
[1724674061341,0.36473,2741.0,2740.9,2.55202086]
[1724674061644,1.27656,2741.0,2740.9,3.70583051]
[1724674061836,1.27656,2741.0,2740.9,1.51853965]
[1724674062035,1.27656,2741.0,2740.9,1.89523965]
[1724674062234,0.36473,2741.0,2740.9,3.71956932]
[1724674062635,0.36473,2741.0,2740.9,4.08430932]
[1724674063439,0.36473,2741.0,2740.9,3.71956932]
[1724674063839,0.72552,2741.1,2740.9,4.08430932]
[1724674064039,0.72552,2741.1,2741.0,0.93529207]
[1724674064235,0.72552,2741.1,2741.0,0.7409]
[1724674066143,0.72552,2741.1,2741.0,2.25943895]
[1724674067939,1.63731,2741.1,2741.0,1.51853895]
[1724674068146,0.36473,2741.0,2740.9,1.33344758]
[1724674068353,0.36473,2741.0,2740.9,3.71953825]
[1724674068647,1.27656,2741.0,2740.9,1.51854071]
[1724674069343,1.27656,2741.0,2740.9,1.5185647]
[1724674069546,0.36474,2740.9,2740.8,0.95674758]
[1724674069748,4.56066,2740.9,2740.6,0.95674758]
[1724674070051,4.56066,2740.9,2740.5,0.95674758]
[1724674070052,0.36478,2740.6,2740.5,0.95674758]
[1724674070257,0.36478,2740.6,2740.5,1.88338961]
[1724674070649,0.36478,2740.6,2740.5,1.51859961]
[1724674072452,0.36478,2740.6,2740.5,1.5185936]
[1724674072848,0.36478,2740.6,2740.5,0.95674758]
[1724674073046,0.36478,2740.6,2740.5,1.51859357]
[1724674073251,0.36478,2740.6,2740.5,0.95674758]
[1724674074052,0.36478,2740.6,2740.5,1.32153758]
[1724674074249,0.36478,2740.6,2740.5,1.88337338]
[1724674074554,0.36478,2740.6,2740.5,1.88337191]
[1724674074745,0.36478,2740.6,2740.5,3.70788572]
[1724674074947,0.36478,2740.6,2740.5,1.88337191]
[1724674077158,0.36478,2740.6,2740.5,1.32153758]
[1724674077349,0.36478,2740.6,2740.5,1.88337214]
[1724674077953,0.36478,2740.6,2740.5,1.32153758]
[1724674078146,0.36478,2740.6,2740.5,0.95674758]
[1724674079156,0.36479,2740.5,2740.4,2.42114758]
[1724674079358,0.36479,2740.6,2740.5,0.36479]
[1724674079560,0.36478,2740.6,2740.4,2.42113758]
[1724674079751,0.36478,2740.6,2740.5,0.36479]
[1724674082456,3.2078,2741.0,2740.5,1.31]
[1724674082669,0.36473,2741.0,2740.9,1.67473]
[1724674082855,0.36469,2741.3,2741.2,0.3647]
[1724674083055,0.91642787,2741.4,2741.3,0.36469]
[1724674083056,0.00471787,2741.4,2741.3,0.36469]
[1724674083361,0.00471787,2741.4,2741.3,5.32269]
[1724674083558,0.00471787,2741.4,2741.3,6.27943758]
[1724674084058,0.00471787,2741.4,2741.3,5.53115483]
[1724674084355,0.00547515,2741.6,2741.5,0.36466]
[1724674084962,0.00547515,2741.6,2741.5,1.09636]
[1724674085358,0.00923459,2741.6,2741.5,1.46556]
[1724674086457,0.37388459,2741.6,2741.5,1.1009]
[1724674087666,0.00923459,2741.6,2741.5,1.1009]
[1724674088269,0.37388459,2741.6,2741.5,0.3732]
[1724674089471,0.36469,2741.4,2741.2,3.9413]
[1724674089667,0.36469,2741.4,2741.2,4.2969]
[1724674090263,0.36469,2741.4,2741.3,0.36469]
[1724674090576,0.72797,2741.5,2741.3,0.36469]
[1724674090876,0.36467,2741.4,2741.2,4.29689]
[1724674091079,0.72797,2741.5,2741.2,3.9322]
[1724674091375,0.72797,2741.5,2741.3,0.36468]
[1724674092075,0.3633,2741.5,2741.4,0.36467]
[1724674092276,0.3633,2741.5,2741.2,3.9322]
[1724674092277,0.72796,2741.5,2741.3,0.36468]
[1724674093169,0.72796,2741.5,2741.4,0.36467]
[1724674093379,0.72796,2741.5,2741.2,3.9322]
[1724674093776,0.72796,2741.5,2741.3,0.36468]
[1724674095381,0.72796,2741.5,2741.4,0.36467]
[1724674095870,0.72796,2741.5,2741.3,0.36468]
[1724674096076,0.72796,2741.5,2741.3,0.36469]
[1724674096779,0.72796,2741.5,2741.3,0.36467]
[1724674097182,0.72796,2741.5,2741.4,0.36467]
[1724674097885,0.72796,2741.5,2741.3,0.36468]
[1724674098183,0.36467,2741.4,2741.3,0.36468]
[1724674098588,0.36467,2741.4,2741.2,0.7244]
[1724674098786,0.36467,2741.4,2741.3,0.36469]
[1724674099280,0.3633,2741.5,2741.0,0.95674758]
[1724674099281,1.27496,2741.5,2741.0,0.95674758]
[1724674099488,1.27496,2741.5,2741.0,0.71553]
[1724674099489,0.36471,2741.2,2741.0,0.71553]
[1724674099784,0.3598,2741.1,2741.0,0.71553]
[1724674100883,0.3647,2741.3,2741.2,0.3647]
[1724674101577,0.3647,2741.3,2741.0,0.3508]
[1724674101578,0.3647,2741.2,2741.1,0.3647]
[1724674101775,0.3647,2741.3,2741.2,0.3647]
[1724674107289,0.36471,2741.2,2741.1,0.3647]